Cogmind - Beta 15 @@@ ROGUE MODE // 2025.06.02 @ 17:24:37 Player: Figgis Result: Destroyed by A1-6SJ(R) with Subdweller Beam Cannon Performance ------------- Evolutions (0) 0 Regions Visited (2) 400 Robots Destroyed (13) 65 Value Destroyed (474) 474 Prototype IDs (2) 40 Alien Tech Used (0) 0 Bonus (0) 0 TOTAL SCORE: 979 Bonus ------- None Cogmind --------- Core Integrity 0/250 Matter 2/300 Energy 265/265 System Corruption 2% Temperature Cool (9) Movement Walking (330) Ox3 Location -10/Subcaves Parts ------- > --- POWER (1) -------- Improved Ion Engine > --- PROPULSION (2) --- Aluminum Leg > --- UTILITY (2) ------ Large Storage Unit Targeting Computer > --- WEAPON (2) ------- Heavy Assault Rifle Heavy Assault Rifle > --- INVENTORY (15) --- Improved Ion Engine Subdweller Power Source Light Nuclear Core Propulsion Shielding Scrap Shield Subdweller Machine Gun Light Cannon Light Cannon Mini Grenade Launcher Peak State ------------ > --- POWER ------------ Improved Ion Engine > --- PROPULSION ------- Aluminum Leg Aluminum Leg > --- UTILITY ---------- Large Storage Unit Targeting Computer > --- WEAPON ----------- Heavy Assault Rifle Heavy Assault Rifle > --- INVENTORY -------- Improved Ion Engine Improved Ion Engine Improved Ion Engine Light Nuclear Core Aluminum Leg Aluminum Leg Aluminum Leg Propulsion Shielding Medium Laser Assault Rifle Heavy Assault Rifle Heavy Assault Rifle Light Cannon Light Cannon Mini Grenade Launcher [Rating: 12] Favorites ----------- Power Improved Ion Engine Engine Improved Ion Engine Propulsion Aluminum Leg Leg Aluminum Leg Utility Targeting Computer Device Heat Sink Storage Large Storage Unit Processor Targeting Computer Weapon Heavy Assault Rifle Energy Gun Medium Laser Ballistic Gun Heavy Assault Rifle Ballistic Cannon Light Cannon Build | -11 -10 -10 ------- Run | Yrd Mat Sub Slots Evolved . | . . . Power . | . . . Propulsion . | . . . Utility . | . . . Weapon . | . . . Parts Attached 23 | 3 11 9 Power 4 | . 2 2 Engine 4 | . 2 2 Core . | . . . Reactor . | . . . Propulsion 7 | 2 2 3 Treads . | . . . Leg 7 | 2 2 3 Wheel . | . . . Hover . | . . . Flight . | . . . Utility 4 | . 4 . Device 1 | . 1 . Storage 2 | . 2 . Processor 1 | . 1 . Hackware . | . . . Protection . | . . . Artifact . | . . . Weapon 8 | 1 3 4 Energy Gun 1 | . 1 . Energy Cannon . | . . . Ballistic Gun 5 | 1 2 2 Ballistic Cannon 2 | . . 2 Launcher . | . . . Special Weapon . | . . . Impact Weapon . | . . . Slashing Weapon . | . . . Piercing Weapon . | . . . Special Melee Weapon . | . . . Unidentified Prototypes . | . . . Parts Lost 9 | . 1 8 Power 2 | . . 2 Propulsion 5 | . 1 4 Utility . | . . . Weapon 2 | . . 2 Highest Loss Streak 5 | . 1 5 To Critical Strikes . | . . . Average Backups 9 | 3 7 12 Power 2 | 1 2 3 Propulsion 2 | . 2 2 Utility . | . . 1 Weapon 2 | 1 1 4 Tool/Special . | . . . Unused Backups 10 | . 3 7 Power 4 | . 1 3 Propulsion . | . . . Utility 2 | . . 2 Weapon 4 | . 2 2 Tool/Special . | . . . Average Slot Usage (%) 97 | . 98 95 Engine 13 | . 13 12 Leg 26 | . 27 25 Storage 13 | . 13 14 Processor 12 | . 12 14 Energy Gun 8 | . 12 . Ballistic Gun 18 | . 15 25 Peak Build Rating 12 | 3 12 12 Average Rating 9 | 2 8 11 On Entrance 5 | . 3 12 Naked Turns . | . . . Heaviest Build 33 | 2 33 33 Greatest Support 20 | 3 20 20 Greatest Overweight (x) 10 | . 2 10 Average Overweight (x) . | . . 1 Largest Inventory Capacity 15 | 5 15 15 Average Capacity 14 | 5 14 15 Most Carried 15 | 5 15 15 Average Carried 9 | 3 7 12 Final Capacity 15 | 5 15 15 Final Carried 13 | 5 13 10 Class Distribution -------------------- 100% | Mutant Dominant Class ---------------- Mutant | -10/Materials Mutant | -10/Subcaves Resources | -11 -10 -10 ----------- Run | Yrd Mat Sub Matter Collected 474 | 230 179 65 Remotely . | . . . Salvage Created 521 | . 358 163 Parts 23 | . 12 11 Haulers Intercepted . | . . . Recyclers Shooed . | . . . Parts Field Recycled . | . . . Retrieved Matter . | . . . Parts Self-Destructed 15 | . . 15 Prevented . | . . . Kills | -11 -10 -10 ------- Run | Yrd Mat Sub Combat Hostiles Destroyed 12 | . 8 4 Guns 12 | . 8 4 Classes Destroyed 3 | . 2 1 Watcher 1 | . 1 . Grunt 8 | . 8 . Subdweller 4 | . . 4 Best Kill Streak 4 | . 4 2 Combat Bots Only 4 | . 4 2 Max Kills in Single Turn 1 | . 1 1 Gunslinging . | . . . Exploded . | . . . Melee . | . . . Uniques/NPCs Destroyed . | . . . Combat | -11 -10 -10 -------- Run | Yrd Mat Sub Hostile Shots Fired 117 | . 50 67 Missed 32 | . 13 19 Hits 85 | . 37 48 Projectile 85 | . 37 48 AOE 2 | . . 2 Critical Strikes 2 | . . 2 Damage Taken 1645 | . 444 1201 Core 271 | . 100 171 Absorbed by Shields . | . . . Core Remaining (%) 100 | 100 . . Volleys Fired 70 | . 27 43 Largest 2 | . 2 2 Hottest 70 | . 70 60 Shots Fired 139 | . 56 83 Gun 131 | . 56 75 Cannon 8 | . . 8 Launcher . | . . . Special . | . . . Kinetic 111 | . 28 83 Thermal 28 | . 28 . Explosive . | . . . Electromagnetic . | . . . Robot Hit Streak 21 | . 16 21 Robot Miss Streak 3 | . 1 3 Penetration Max . | . . . Secondary Targets 1 | . 1 . Max Gunslinging Chain 1 | . 1 . Shots Hit Robots 104 | . 42 62 Core Hits 27 | . 18 9 Critical Kills . | . . . Critical Parts Destroyed 1 | . . 1 Critical Strikes 6 | . 4 2 Burn 4 | . 4 . Destroy 2 | . . 2 Melee Attacks . | . . . Impact . | . . . Slashing . | . . . Piercing . | . . . Sneak Attacks . | . . . Combat Hostiles . | . . . Follow-up Attacks . | . . . Damage Inflicted 1161 | . 552 609 Guns 1161 | . 552 609 Cannons . | . . . Explosions . | . . . Melee . | . . . Ramming . | . . . Kinetic 894 | . 285 609 Thermal 267 | . 267 . Explosive . | . . . Electromagnetic . | . . . Impact . | . . . Slashing . | . . . Piercing . | . . . Highest Corruption 2 | . 2 2 Average Corruption 2 | . 2 2 Corruption Purged . | . . . Corruption Blocked . | . . . Effects 20 | . 13 7 Message Errors 5 | . 3 2 Matter Fused 2 | . 2 . Heat Flow Errors 1 | . 1 . Energy Discharges 1 | . 1 . Parts Fused 2 | . . 2 Data Loss (minor) 4 | . 2 2 Data Loss (major) 3 | . 2 1 Misfires 2 | . 2 . Overload Shots . | . . . Overflow Damage . | . . . Projectiles . | . . . Explosions . | . . . Melee . | . . . Knockbacks . | . . . Impact . | . . . Kinetic . | . . . Secondary . | . . . Self-Inflicted Damage . | . . . Shots . | . . . Rammed . | . . . Targets Rammed . | . . . Kicked . | . . . Crushed . | . . . Highest Temperature 222 | . 141 222 Average Temperature 55 | . 50 101 Received Heat Transfer 664 | . 249 415 Siege Activations . | . . . Martial Activations . | . . . Shielding Activations . | . . . Robots Disrupted . | . . . Combat Hostiles . | . . . Robots Corrupted . | . . . Combat Hostiles . | . . . Parts Fried . | . . . Impact Corruptions . | . . . Robots Melted . | . . . Combat Hostiles . | . . . Parts Melted 5 | . 4 1 Heat Transferred 1073 | . 1073 . Parts Sabotaged . | . . . Parts Stolen . | . . . Parts Stripped . | . . . Power Chain Reactions . | . . . Alert | -11 -10 -10 ------- Run | Yrd Mat Sub Maximum Alert Level . | . . . Low Security (%) 100 | 100 100 . Level 1 . | . . . Level 2 . | . . . Level 3 . | . . . Level 4 . | . . . Level 5 . | . . . High Security . | . . . Max Security . | . . . Peak Influence 72 | . 72 . Initial . | . . . Average 13 | . 13 . Influence Increases 208 | . 208 . Destroy 0b10 Robot/C 160 | . 160 . Destroy 0b10 Robot/NC 5 | . 5 . Destroy Leader 32 | . 32 . Successful Hack 11 | . 11 . Influence Decreases 208 | . 208 . Time Decay 198 | . 198 . Lost Part 10 | . 10 . Squads Dispatched 1 | . 1 . Investigation . | . . . Extermination . | . . . Reinforcement 1 | . 1 . Assault . | . . . Garrison . | . . . Intercept . | . . . Searches Triggered . | . . . Construction Impeded . | . . . Haulers Reinforced . | . . . Active Scanning Responses . | . . . Cargo Convoy Interrupts . | . . . Stealth | -11 -10 -10 --------- Run | Yrd Mat Sub Distress Signals 1 | . 1 . Communications Jammed . | . . . Distress Signals . | . . . Times Spotted 17 | . 12 5 Peak Tracking Total 5 | . 5 2 Tactical Retreats . | . . . Traps | -11 -10 -10 ------- Run | Yrd Mat Sub Traps Triggered 3 | . 1 2 Indirectly . | . . . Trap Hack Attempts . | . . . Triggered . | . . . Disarmed . | . . . Reprogrammed . | . . . Reused . | . . . Traps Extracted . | . . . Installed . | . . . Triggered . | . . . Machines | -11 -10 -10 ---------- Run | Yrd Mat Sub Machines Disabled . | . . . Max in Single Turn . | . . . Machines Repaired . | . . . Machines Dismantled . | . . . Machines Sabotaged . | . . . Overloaded Fab Kills . | . . . Hacking | -11 -10 -10 --------- Run | Yrd Mat Sub Machines Accessed 6 | . 6 . Terminals 6 | . 6 . Fabricators . | . . . Repair Stations . | . . . Recycling Units . | . . . Scanalyzers . | . . . Garrison Access . | . . . Total Hacks 17 | . 17 . Successful 9 | . 9 . Failed 7 | . 7 . Catastrophic . | . . . Database Lockouts 1 | . 1 . Manual 9 | . 9 . Terminals 17 | . 17 . Fabricators . | . . . Repair Stations . | . . . Recycling Units . | . . . Scanalyzers . | . . . Garrison Access . | . . . Terminal Hacks 6 | . 6 . Robot Analysis 1 | . 1 . Prototype ID Bank 1 | . 1 . Branch Access Points 1 | . 1 . Alert Level 1 | . 1 . Locate Traps 1 | . 1 . Zone Layout 1 | . 1 . Fabricator Hacks . | . . . Repair Station Hacks . | . . . Recycling Unit Hacks . | . . . Scanalyzer . | . . . Garrison Access Hacks . | . . . Unauthorized Hacks 3 | . 3 . Terminals 3 | . 3 . Botnet 3 | . 3 . Fabricators . | . . . Repair Stations . | . . . Recycling Units . | . . . Scanalyzers . | . . . Garrison Access . | . . . Data Cores Recovered . | . . . Used . | . . . Hacking Detections 6 | . 6 . Full Trace Events . | . . . Feedback Events . | . . . Feedback Blocked . | . . . Robot Schematics Acquired . | . . . Robots Built . | . . . Authchips . | . . . Time . | . . . Total Robot Build Rating . | . . . Part Schematics Acquired . | . . . Parts Built . | . . . Authchips . | . . . Time . | . . . Total Part Build Rating . | . . . Parts Repaired . | . . . Time . | . . . Parts Recycled . | . . . Recycled Matter . | . . . Retrieved Matter . | . . . Retrieved Components . | . . . Parts Scanalyzed . | . . . Part Schematics Acquired . | . . . Parts Damaged . | . . . Bothacking | -11 -10 -10 ------------ Run | Yrd Mat Sub Used RIF Installer . | . . . Robots Hacked . | . . . Non-combat . | . . . Combat . | . . . Robot Hacks Applied . | . . . Relay Couplers Released . | . . . Fabnet Peak Effective % . | . . . Robots Rewired . | . . . Allies Hacked . | . . . Hacks Repelled . | . . . Allies | -11 -10 -10 -------- Run | Yrd Mat Sub Total Allies . | . . . Largest Group . | . . . Highest-Rated Group . | . . . Highest-Rated Ally . | . . . Total Orders . | . . . Ally Attacks . | . . . Total Damage . | . . . Kills . | . . . Allies Corrupted . | . . . Allies Melted . | . . . Intel | -11 -10 -10 ------- Run | Yrd Mat Sub Active Infowar (turns) . | . . . Robot Analysis Total 1 | . 1 . Derelict Logs Recovered . | . . . Drone Launches . | . . . Drone Recoveries . | . . . Exploration | -11 -10 -10 ------------- Run | Yrd Mat Sub Turns Passed 1962 | 30 1285 647 Spaces Moved 890 | 39 600 251 Core 60 | 39 20 1 Treads . | . . . Legs 830 | . 580 250 Wheels . | . . . Hover . | . . . Flight . | . . . Fastest Speed 50 | 50 50 190 Average Speed 175 | 50 176 195 Slowest Speed 550 | 50 260 550 Overloaded Moves . | . . . Propulsion Burnouts . | . . . Robots Hopped . | . . . Potential Cave-ins . | . . . Cave-ins Triggered . | . . . Exploration Rate (%) 37 | 3 90 20 Regions Visited 2 Branch Regions 1 Pre-discovered Areas . | . . . Known Exits Taken . | . . . Unknown Exits Taken 2 | 1 1 . Scrap Searched . | . . . Spaces Dug . | . . . Terrain Destroyed . | . . . Melee . | . . . Projectile . | . . . AOE . | . . . Terrain Rammed . | . . . Walls Destroyed . | . . . Machines Disabled . | . . . Actions | -11 -10 -10 --------- Run | Yrd Mat Sub Total 1148 | 47 777 324 Wait 125 | . 110 15 Move 888 | 38 599 251 Hop . | . . . Pick Up 30 | 6 21 3 Fast Attach 2 | 2 . . Attach 14 | 1 6 7 Detach . | . . . Swap 10 | . 5 5 Drop 9 | . 9 . Fire 70 | . 27 43 Melee . | . . . Ram . | . . . Kick . | . . . Crush . | . . . Escape Stasis . | . . . Rewire . | . . . Trap . | . . . Miscellaneous . | . . . Route ------- -11/Scrapyard -10/Materials (discovered 5 exits: [*Mat x2] / *Min x2 / [*Sub]) -10/Subcaves History --------- Turn | Location | Event 17 | -11/Scrapyard | Discovered new exit (range 15) 31 | -11/Scrapyard | Entered Materials 195 | -10/Materials | Central database locked down 304 | -10/Materials | Build established: Mutant 425 | -10/Materials | Discovered new exit (range 13) 452 | -10/Materials | Identified exit to Mines 781 | -10/Materials | Discovered new exit (range 16) 1297 | -10/Materials | Discovered new exit (range 7) 1316 | -10/Materials | Entered Subcaves 1696 | -10/Subcaves | A Subdweller sparked back to life 1696 | -10/Subcaves | A Subdweller sparked back to life 1718 | -10/Subcaves | Core integrity fell below 50% 1825 | -10/Subcaves | A Subdweller sparked back to life 1899 | -10/Subcaves | Lost 5 parts (1p2n2w) 1943 | -10/Subcaves | Core integrity fell below 20% 1963 | -10/Subcaves | Destroyed by A1-6SJ(R) with Subdweller Beam Cannon Last Messages --------------- 01860_ Subatomizers dissect the Prototype Flight Unit. 01862_ IC-93H(u) builds Twisted Machinery. 01866_ Imp. Ion Engine destroyed. 01868_ IC-93H(u) builds Twisted Machinery. 01868_ Hvy. Assault Rifle destroyed. 01870_ IC-93H(u) builds Twisted Machinery. 01872_ Sub. Monowheel melted. 01872_ TK-70I(R) destroyed. 01873_ IC-93H(u) builds Twisted Machinery. 01875_ Subatomizers dissect the Prototype Flight Unit. 01875_ IC-93H(u) builds Twisted Machinery. 01887_ Acquired 35 matter. 01887_ IC-93H(u) builds Twisted Machinery. 01889_ Subatomizers dissect the Prototype Flight Unit. 01889_ IC-93H(u) builds Twisted Machinery. 01904_ Subatomizers dissect the Sub. Laser. 01909_ IC-93H(u) builds Twisted Machinery. 01942_ Critical hit (Meltdown: +250). 01953_ Aluminum Leg destroyed. 01959_ H5-80Q(R) destroyed. Map ----- +----------------------------------------------------+ | ?????????????????????????????????????????????????? | | ?????????????????????????????????????????????????? | | ?????????????????????????????????????????????????? | | ?????????????????????????????????????????????????? | | ?????????????????????????????????????????????????? | | ?????????????????????????????????????????????????# | | ????????????????????????????????????????????????? | | ??????????????????????????????????????? ?##??????? | | ???????????????????????????????????????? # ##????? | | ????????????????????#?? ????????????????? ???? | | ???????????????????? ## ???????????????? ##?? | | ???????????????????? ????? ??????????? ## | | ???????????????????? #??? ????????? ??# | | ???????????????????? #### ????????#""#?#""" | | ????????????????????# ????????## "##?#""""" | | ????????????????????# ????????# ??#"""" | | ????????????????????# ?????????? #??## """ | | ???????????????###### ???????????# ##??####" | | ???????????????# ???????###?# #?????#" | | ???????????##### % ????????# ### ##???##" | | ????????# ##$ % #????????# ##??#"" | | ???????? % #???????## #??#"" | | ????????? ##?????## #?## " | | ????????????# ##???## ### " | | ?????????????#% % R& ##### " | | ??????????????# &%&@ ; " | | ??????????????## &#! | | ???????????????#### ### # < | | ??????????????????# ??###; # # # !! | | ?????????????????# ?????####### ## = | | ????????????????% ???????????####" " ! [ | | ??????????????? ??????????????# "" | | ??????????????# #### ??????????????## * " | | ??????????????# #???#???????????????# ### #### | | ??????????????##????????????????????# ##?# #?? | | ????????????????????????????????????####??# ####?? | | ??????????????????????????????????????????###????? | | ?????????????????????????????????????????????????? | | ?????????????????????????????????????????????????? | | ?????????????????????????????????????????????????? | | ?????????????????????????????????????????????????? | | ?????????????????????????????????????????????????? | | ?????????????????????????????????????????????????? | | ?????????????????????????????????????????????????? | | ?????????????????????????????????????????????????? | | ?????????????????????????????????????????????????? | | ?????????????????????????????????????????????????? | | ?????????????????????????????????????????????????? | | ?????????????????????????????????????????????????? | | ?????????????????????????????????????????????????? | +----------------------------------------------------+ Best States ------------- Heat Dissipation 35 Energy Generation 12 Energy Capacity 265 Matter Stores 300 Matter Capacity 300 Sight Range 16 Terrain Scan Density 10 Evasion (%) 55 Targeting Accuracy 5 Item Schematics ----------------- None Robot Schematics ------------------ None Fabricated ------------ Nothing Repaired ---------- Nothing Alien Tech Used ----------------- None Achievements -------------- None Challenges ------------ None Game ------ Seed SlugAerolevDetector Manual? 0 Play Time 00:11:45 Cumulative 174.6 hours Start 2025.06.02 @ 17:15:48 End 2025.06.02 @ 17:24:37 Sessions 1 Manual Loads 0 Difficulty Rogue Special Mode None Game No. 271 Rogue 268 Adventurer 3 Explorer 0 Win Type - Total 1 Types 1/0/0/0/0/0/0/0/0/0 Lore% 60 Gallery% 57 Achievement% 46 Wizard Run 0 Options --------- Layout 0 ASCII 0 Keyboard 0 Movement Mouse Keybinds 0 Fullscreen 2 Font 18/SmallcapsGlow Map View 76x50 Zoom Use 0% Tactical HUD 1 Map Filters NONE Filters NONE Steam 1 RUN: 5299a43c-5d51-4b6d-bf78-bf88359764e8